[Event "VII Copa Marcel Duchamp 2024"]
[Site "Montevideo"]
[Date "2024.02.09"]
[Round "8.3"]
[White "Krysa, Leandro"]
[Black "Acosta, Pablo Ismael"]
[Result "1/2-1/2"]
[ECO "A13"]
[WhiteElo "2541"]
[BlackElo "2479"]
[Annotator "TA"]
[PlyCount "71"]
[EventDate "2024.02.05"]
[EventType "swiss"]
[EventCountry "URU"]
[SourceTitle "playchess.com"]
[Source "ChessBase"]
[SourceQuality "1"]
[TimeControl "5400+30"]

{[%evp 10,71,0,0,42,3,21,-4,25,34,76,85,87,75,80,84,106,88,87,89,97,96,108,77,66,76,72,71,89,85,88,85,87,66,78,76,75,62,88,85,153,147,171,160,162,75,92,70,168,70,157,147,156,-12,-11,-10,-10,-10,-21,-13,-15,-15,-15,-36]} 1. Nf3 {[%emt 0:00:03]} Nf6 {[%emt 0:05:55]} 2. c4 {[%emt 0:00:19]} e6 {[%emt 0:01:01]} 3. g3 {[%emt 0:00:19]} d5 {[%emt 0:00:32]} 4. Bg2 {[%emt 0:00:23]} Nbd7 {[%emt 0:00:07]} 5. O-O {[%emt 0:01:38]} dxc4 {[%emt 0:00:59]} 6. Qc2 {[%emt 0:00:32]} c5 {[%emt 0:03:19][%cal Bc7c5,Bc5c4][%mdl 32]} 7. a4 {[%emt 0:09:17][%cal Oa4a5]} Be7 {[%emt 0:03:02]} 8. Qxc4 {[%emt 0:03:34]} Nb6 {[%emt 0:00:51]} 9. Qb3 {[%emt 0:02:23]} c4 {[%emt 0:17:28]} 10. Qc2 {[%emt 0:05:07]} a5 {[%emt 0:00:41]} 11. Na3 {[%emt 0:02:51]} Bxa3 {[%emt 0:01:32]} 12. Rxa3 {[%emt 0:00:23]} (12. bxa3 Bd7 $11) 12... Nfd5 {[%emt 0:03:43]} 13. b3 {[%emt 0:08:57]} cxb3 {[%emt 0:06:05]} 14. Qxb3 {[%emt 0:00:27]} O-O {[%emt 0:01:24]} 15. d3 {[%emt 0:02:04][%cal Bd2d3,Bd3d4][%mdl 32]} Nd7 {[%emt 0:06:51]} 16. Bg5 {[%emt 0:09:02]} f6 {[%emt 0:03:24]} 17. Bd2 {[%emt 0:02:27] This pair of bishops is nice.} (17. e4 {with more complications.} Nc5 18. Qb5 fxg5 19. exd5 Qxd5 20. Rc1) 17... b6 {[%emt 0:01:27]} 18. e4 {[%emt 0:05:33]} Nc5 {[%emt 0:03:02] [#]} 19. Qb1 {[%emt 0:02:08]} Nb4 {[%emt 0:00:51]} 20. d4 {[%emt 0:10:35]} Nca6 {[%emt 0:00:33]} 21. Rc1 $36 {[%emt 0:01:14][%mdl 2048] White is pushing.} Bb7 {[%emt 0:03:16]} 22. Re3 {[%emt 0:03:27]} Rc8 {[%emt 0:04:45]} 23. Rxc8 {[%emt 0:05:52]} Bxc8 {[%emt 0:00:29]} 24. Bf1 {[%emt 0:02:24]} f5 {[%emt 0:06:09]} (24... Bd7 $142) 25. exf5 $16 {[%emt 0:02:32]} Rxf5 {[%emt 0:00:18]} 26. Bh3 {[%emt 0:10:44]} Rf8 {[%emt 0:00:40]} 27. Qe4 {[%emt 0:01:01]} (27. Bxe6+ Bxe6 28. Rxe6 Rxf3 $17) (27. Rc3 $1 $18 {is more deadly. Ng5 would now be deadly.} Nc7 28. Qe4 (28. Ng5 g6 $18)) 27... Nc7 {[%emt 0:03:08]} 28. Re1 {[%emt 0:02:34] And now Ng5 would win.} Qf6 {[%emt 0:03:02]} (28... Qd5 $14 29. Ne5 Qxe4 30. Rxe4 Ncd5 31. Bxb4 axb4) 29. Bf4 {[%emt 0:02:19]} (29. Bxb4 $18 axb4 30. Rc1) 29... Nbd5 {[%emt 0:02:32]} ({Better is} 29... Ncd5 $14) 30. Ng5 {[%emt 0:00:32][%csl Gg5][%cal Re4h7] [#]} g6 {[%emt 0:00:19][%cal Rd5f4]} 31. Nxe6 {[%emt 0:00:45] White is much more active.} (31. Bxe6+ Bxe6 32. Nxe6 Qxe6 33. Qxe6+ Nxe6 34. Rxe6 Nxf4 35. gxf4 Rxf4 $15) (31. Rc1 $16 {Qe5 is the strong threat.} Bd7 32. Bxc7 (32. Rxc7 Nxc7 33. Qb7 e5 $17) 32... Qxg5 33. Bxe6+ Bxe6 34. Qxe6+ Rf7 35. Rc6 Nxc7 36. Rxc7) 31... Bxe6 $11 {[%emt 0:06:47] The position is equal.} 32. Bxe6+ {[%emt 0:00:07]} Qxe6 {[%emt 0:00:08]} 33. Qxe6+ {[%emt 0:00:05]} Nxe6 {[%emt 0:00:05]} 34. Rxe6 {[%emt 0:00:06]} Nxf4 {[%emt 0:00:07]} 35. gxf4 {[%emt 0:00:05]} Rxf4 {[%emt 0:00:05]} 36. d5 {[%emt 0:00:56] White really could win this.   Weighted Error Value: White=0.26 (precise) /Black=0.21 (precise) .  Mistake:       	White=3     	Black=3      Inaccurate:     	White=1     	Black=3      OK:         	White=9     	Black=10     Best:        	---       	Black=2} 1/2-1/2

[Event "VII Copa Marcel Duchamp 2024"]
[Site "Montevideo"]
[Date "2024.02.10"]
[Round "9.1"]
[White "Meier, Georg"]
[Black "Acosta, Pablo Ismael"]
[Result "1/2-1/2"]
[ECO "D79"]
[WhiteElo "2620"]
[BlackElo "2479"]
[Annotator "TA"]
[PlyCount "74"]
[EventDate "2024.02.05"]
[EventType "swiss"]
[EventCountry "URU"]
[SourceTitle "playchess.com"]
[Source "ChessBase"]
[SourceQuality "1"]
[TimeControl "5400+30"]

{[%evp 22,74,19,18,12,8,12,0,0,0,0,1,2,7,22,26,22,18,18,12,34,33,25,27,42,32,76,75,121,27,16,8,8,16,17,16,16,16,21,0,0,0,0,0,0,0,6,6,17,0,0,0,7,7,17]} 1. Nf3 {[%emt 1:31:00]} d5 {[%emt 0:04:19]} 2. g3 {[%emt 0:00:00]} Nf6 {[%emt 0:00:08]} 3. Bg2 {[%emt 0:00:00]} c5 {[%emt 0:00:20]} 4. O-O {[%emt 0:00:00]} g6 {[%emt 0:00:18]} 5. c3 {[%emt 0:00:00]} Bg7 {[%emt 0:00:51]} 6. d4 {[%emt 0:00:00]} cxd4 {[%emt 0:01:13]} 7. cxd4 {[%emt 0:00:00]} O-O {[%emt 0:00:04]} 8. Nc3 {[%emt 0:00:00]} Ne4 {[%emt 0:00:26]} 9. Ne5 {[%emt 0:00:00]} Nxc3 {[%emt 0:00:11]} 10. bxc3 {[%emt 0:00:00]} Nc6 {[%emt 0:00:09]} 11. Nxc6 {[%emt 0:00:00]} bxc6 {[%emt 0:00:06]} 12. Qa4 {[%emt 0:00:00]} Qb6 {[%emt 0:00:24]} 13. Bf4 {[%emt 0:00:00]} (13. e4 {with more complications.} Qa6 14. Qa3 dxe4 15. Bxe4 e5 16. Rd1) 13... Qa6 {[%emt 0:02:07]} 14. Qxa6 {[%emt 0:00:00]} Bxa6 {[%emt 0:00:05]} 15. Rfe1 {[%emt 0:00:00]} c5 {[%emt 0:05:30]} 16. e3 {[%emt 0:00:00]} ({Of course not} 16. dxc5 Bxc3 17. Bxd5 Rac8 $15) 16... cxd4 {[%emt 0:00:36]} 17. cxd4 {[%emt 0:00:00]} e6 {[%emt 0:00:10]} 18. a4 {[%emt 0:00:00]} Rfc8 {[%emt 0:02:26]} 19. a5 {[%emt 0:00:00]} Bf6 {[%emt 0:06:41]} 20. h4 {[%emt 0:00:00]} Rc6 {[%emt 0:03:13]} 21. Reb1 {[%emt 0:00:00]} Rac8 {[%emt 0:02:43]} 22. Bf1 {[%emt 0:00:00]} Bxf1 {[%emt 0:12:08]} 23. Kxf1 {[%emt 0:00:00]} Bd8 {[%emt 0:02:06]} 24. Rb7 {[%emt 0:00:00]} Ra6 {[%emt 0:11:15] [#]} ({Black should try} 24... a6) 25. Rd7 {[%emt 0:00:00] White is more active.} ({Better is} 25. Rab1 $1 $16 {aiming for Rd7.} Bxa5 26. Ra1) 25... Bb6 $1 $11 {[%emt 0:01:26]} 26. g4 {[%emt 0:00:00] The position is equal.} Rxa5 {[%emt 0:04:08]} 27. Rxa5 {[%emt 0:00:00]} Bxa5 {[%emt 0:00:02]} 28. Rxa7 {[%emt 0:00:00][%mdl 4096] Endgame. KRB-KRB} Bd8 {[%emt 0:00:07]} 29. g5 {[%emt 0:00:00]} h6 {[%emt 0:00:32]} 30. Kg2 {[%emt 0:00:00]} hxg5 {[%emt 0:01:12]} 31. hxg5 {[%emt 0:00:00]} Kf8 {[%emt 0:05:01]} 32. Bd6+ {[%emt 0:00:00]} Ke8 {[%emt 0:01:38]} 33. f4 {[%emt 0:00:00]} Rc3 {[%emt 0:01:44]} 34. Kf2 {[%emt 0:00:00]} f6 {[%emt 0:01:23]} 35. gxf6 {[%emt 0:00:00]} (35. Ra8 $5 Kd7 36. gxf6 Bxf6 37. Bc5 $14) 35... Bxf6 {[%emt 0:00:07]} 36. Be5 {[%emt 0:00:00]} Bxe5 {[%emt 0:00:46]} 37. fxe5 {[%emt 0:00:00]} Kf8 {[%emt 0:00:28] Wards off Rg7.   Weighted Error Value: White=0.09 (flawless) /Black=0.06 (flawless) .  Mistake:       	White=1     	Black=1      Inaccurate:     	---       	Black=1      OK:         	White=10    	Black=10     Best:        	White=1     	---        Strong:       	---       	Black=1} 1/2-1/2